{"text_format":"1","workbook":"xlsx","n_sheets":2,"sheets":["Essensliste","TN Liste"],"not_rendered":{"charts":0,"images":0,"macros":1,"external_links":0,"defined_names":2,"comments":0,"pivot_tables":0},"unopened":[],"bounds":{"document_bytes":16777216,"sheet_cells":100000,"rows_first":2000,"rows_last":500,"rows_between":2000,"halvings":0,"cell_chars":16384,"cell_head_chars":4096},"cells_cut":0,"cells_raw":0,"read":"whole","date_system":"1900"}

{"sheet":"Essensliste","index":0,"n_rows":54,"n_cols":27,"rows_kept":54,"cut":false,"hidden":false,"merged":[[40,24,40,27],[42,11,42,13],[42,25,42,27],[6,26,6,27],[7,16,7,17],[7,18,7,19],[7,20,7,21],[7,22,7,23],[7,24,7,25],[7,26,7,27],[5,14,5,25],[6,16,6,17],[6,18,6,19],[6,20,6,21],[6,22,6,23],[6,24,6,25],[3,15,4,15],[3,16,3,27],[4,20,4,21],[4,22,4,23],[4,24,4,25],[4,26,4,27],[51,2,52,3],[53,2,54,3],[51,5,52,6],[53,5,54,6],[2,0,2,13],[6,4,6,5],[6,6,6,7],[1,0,1,13],[0,0,0,13],[4,12,4,13],[3,2,3,13],[4,10,4,11],[4,8,4,9],[4,6,4,7],[3,0,4,0],[3,1,4,1],[0,14,0,27],[1,14,1,27],[2,14,2,27],[3,14,4,14],[40,10,40,13],[5,0,5,11],[7,10,7,11],[6,8,6,9],[7,2,7,3],[7,4,7,5],[7,6,7,7],[7,8,7,9],[7,12,7,13],[6,12,6,13],[6,10,6,11],[6,2,6,3]]}
["Essensliste",null,null,null,null,null,null,null,null,null,null,null,null,null,"Essensliste"]
[]
[]
["Vor- und Nachname","Besonderheiten","Datum",null,null,null,null,null,null,null,null,null,null,null,"Vor- und Nachname","Besonderheiten","Datum"]
[null,null,"Jahr",2025,"KW",18,"von",null,{"$f":"C8","v":"2025-04-28"},null,"bis",null,{"$f":"M8","v":"2025-05-05"},null,null,null,"Jahr",{"$f":"D5","v":2025},"KW",{"$f":"F5","v":18},"von",null,{"$f":"I5","v":"2025-04-28"},null,"bis",null,{"$f":"M5","v":"2025-05-05"}]
[]
[null,null,"Montag",null,"Dienstag",null,"Mittwoch",null,"Donnerstag",null,"Freitag",null,"Montag",null,null,null,"Montag",null,"Dienstag",null,"Mittwoch",null,"Donnerstag",null,"Freitag",null,"Montag"]
[null,null,{"$f":"DATE(D5,1,1)+(F5-1)*7+1-WEEKDAY(DATE(D5,1,1)-1)","v":"2025-04-28"},null,{"$f":"C8+1","v":"2025-04-29"},null,{"$f":"E8+1","v":"2025-04-30"},null,{"$f":"G8+1","v":"2025-05-01"},null,{"$f":"I8+1","v":"2025-05-02"},null,{"$f":"K8+3","v":"2025-05-05"},null,null,null,{"$f":"C8","v":"2025-04-28"},null,{"$f":"E8","v":"2025-04-29"},null,{"$f":"G8","v":"2025-04-30"},null,{"$f":"I8","v":"2025-05-01"},null,{"$f":"K8","v":"2025-05-02"},null,{"$f":"M8","v":"2025-05-05"}]
[{"$f":"IF('TN Liste'!A2=0,\"\",'TN Liste'!A2)","v":"Max Mustermann 1"},null,null,null,null,null,null,null,null,null,null,null,null,null,{"$f":"IF('TN Liste'!A32=0,\"\",'TN Liste'!A32)","v":"Max Mustermann 31"}]
[{"$f":"IF('TN Liste'!A3=0,\"\",'TN Liste'!A3)","v":"Max Mustermann 2"},null,null,null,null,null,null,null,null,null,null,null,null,null,{"$f":"IF('TN Liste'!A33=0,\"\",'TN Liste'!A33)","v":"Max Mustermann 32"}]
[{"$f":"IF('TN Liste'!A4=0,\"\",'TN Liste'!A4)","v":"Max Mustermann 3"},null,null,null,null,null,null,null,null,null,null,null,null,null,{"$f":"IF('TN Liste'!A34=0,\"\",'TN Liste'!A34)","v":"Max Mustermann 33"}]
[{"$f":"IF('TN Liste'!A5=0,\"\",'TN Liste'!A5)","v":"Max Mustermann 4"},null,null,null,null,null,null,null,null,null,null,null,null,null,{"$f":"IF('TN Liste'!A35=0,\"\",'TN Liste'!A35)","v":"Max Mustermann 34"}]
[{"$f":"IF('TN Liste'!A6=0,\"\",'TN Liste'!A6)","v":"Max Mustermann 5"},null,null,null,null,null,null,null,null,null,null,null,null,null,{"$f":"IF('TN Liste'!A36=0,\"\",'TN Liste'!A36)","v":"Max Mustermann 35"}]
[{"$f":"IF('TN Liste'!A7=0,\"\",'TN Liste'!A7)","v":"Max Mustermann 6"},null,null,null,null,null,null,null,null,null,null,null,null,null,{"$f":"IF('TN Liste'!A37=0,\"\",'TN Liste'!A37)","v":"Max Mustermann 36"}]
[{"$f":"IF('TN Liste'!A8=0,\"\",'TN Liste'!A8)","v":"Max Mustermann 7"},null,null,null,null,null,null,null,null,null,null,null,null,null,{"$f":"IF('TN Liste'!A38=0,\"\",'TN Liste'!A38)","v":""}]
[{"$f":"IF('TN Liste'!A9=0,\"\",'TN Liste'!A9)","v":"Max Mustermann 8"},null,null,null,null,null,null,null,null,null,null,null,null,null,{"$f":"IF('TN Liste'!A39=0,\"\",'TN Liste'!A39)","v":""}]
[{"$f":"IF('TN Liste'!A10=0,\"\",'TN Liste'!A10)","v":"Max Mustermann 9"},null,null,null,null,null,null,null,null,null,null,null,null,null,{"$f":"IF('TN Liste'!A40=0,\"\",'TN Liste'!A40)","v":""}]
[{"$f":"IF('TN Liste'!A11=0,\"\",'TN Liste'!A11)","v":"Max Mustermann 10"},null,null,null,null,null,null,null,null,null,null,null,null,null,{"$f":"IF('TN Liste'!A41=0,\"\",'TN Liste'!A41)","v":""}]
[{"$f":"IF('TN Liste'!A12=0,\"\",'TN Liste'!A12)","v":"Max Mustermann 11"},null,null,null,null,null,null,null,null,null,null,null,null,null,{"$f":"IF('TN Liste'!A42=0,\"\",'TN Liste'!A42)","v":""}]
[{"$f":"IF('TN Liste'!A13=0,\"\",'TN Liste'!A13)","v":"Max Mustermann 12"},null,null,null,null,null,null,null,null,null,null,null,null,null,{"$f":"IF('TN Liste'!A43=0,\"\",'TN Liste'!A43)","v":""}]
[{"$f":"IF('TN Liste'!A14=0,\"\",'TN Liste'!A14)","v":"Max Mustermann 13"},null,null,null,null,null,null,null,null,null,null,null,null,null,{"$f":"IF('TN Liste'!A44=0,\"\",'TN Liste'!A44)","v":""}]
[{"$f":"IF('TN Liste'!A15=0,\"\",'TN Liste'!A15)","v":"Max Mustermann 14"},null,null,null,null,null,null,null,null,null,null,null,null,null,{"$f":"IF('TN Liste'!A45=0,\"\",'TN Liste'!A45)","v":""}]
[{"$f":"IF('TN Liste'!A16=0,\"\",'TN Liste'!A16)","v":"Max Mustermann 15"},null,null,null,null,null,null,null,null,null,null,null,null,null,{"$f":"IF('TN Liste'!A46=0,\"\",'TN Liste'!A46)","v":""}]
[{"$f":"IF('TN Liste'!A17=0,\"\",'TN Liste'!A17)","v":"Max Mustermann 16"},null,null,null,null,null,null,null,null,null,null,null,null,null,{"$f":"IF('TN Liste'!A47=0,\"\",'TN Liste'!A47)","v":""}]
[{"$f":"IF('TN Liste'!A18=0,\"\",'TN Liste'!A18)","v":"Max Mustermann 17"},null,null,null,null,null,null,null,null,null,null,null,null,null,{"$f":"IF('TN Liste'!A48=0,\"\",'TN Liste'!A48)","v":""}]
[{"$f":"IF('TN Liste'!A19=0,\"\",'TN Liste'!A19)","v":"Max Mustermann 18"},null,null,null,null,null,null,null,null,null,null,null,null,null,{"$f":"IF('TN Liste'!A49=0,\"\",'TN Liste'!A49)","v":""}]
[{"$f":"IF('TN Liste'!A20=0,\"\",'TN Liste'!A20)","v":"Max Mustermann 19"},null,null,null,null,null,null,null,null,null,null,null,null,null,{"$f":"IF('TN Liste'!A50=0,\"\",'TN Liste'!A50)","v":""}]
[{"$f":"IF('TN Liste'!A21=0,\"\",'TN Liste'!A21)","v":"Max Mustermann 20"},null,null,null,null,null,null,null,null,null,null,null,null,null,{"$f":"IF('TN Liste'!A51=0,\"\",'TN Liste'!A51)","v":""}]
[{"$f":"IF('TN Liste'!A22=0,\"\",'TN Liste'!A22)","v":"Max Mustermann 21"},null,null,null,null,null,null,null,null,null,null,null,null,null,{"$f":"IF('TN Liste'!A52=0,\"\",'TN Liste'!A52)","v":""}]
[{"$f":"IF('TN Liste'!A23=0,\"\",'TN Liste'!A23)","v":"Max Mustermann 22"},null,null,null,null,null,null,null,null,null,null,null,null,null,{"$f":"IF('TN Liste'!A53=0,\"\",'TN Liste'!A53)","v":""}]
[{"$f":"IF('TN Liste'!A24=0,\"\",'TN Liste'!A24)","v":"Max Mustermann 23"},null,null,null,null,null,null,null,null,null,null,null,null,null,{"$f":"IF('TN Liste'!A54=0,\"\",'TN Liste'!A54)","v":""}]
[{"$f":"IF('TN Liste'!A25=0,\"\",'TN Liste'!A25)","v":"Max Mustermann 24"},null,null,null,null,null,null,null,null,null,null,null,null,null,{"$f":"IF('TN Liste'!A55=0,\"\",'TN Liste'!A55)","v":""}]
[{"$f":"IF('TN Liste'!A26=0,\"\",'TN Liste'!A26)","v":"Max Mustermann 25"},null,null,null,null,null,null,null,null,null,null,null,null,null,{"$f":"IF('TN Liste'!A56=0,\"\",'TN Liste'!A56)","v":""}]
[{"$f":"IF('TN Liste'!A27=0,\"\",'TN Liste'!A27)","v":"Max Mustermann 26"},null,null,null,null,null,null,null,null,null,null,null,null,null,{"$f":"IF('TN Liste'!A57=0,\"\",'TN Liste'!A57)","v":""}]
[{"$f":"IF('TN Liste'!A28=0,\"\",'TN Liste'!A28)","v":"Max Mustermann 27"},null,null,null,null,null,null,null,null,null,null,null,null,null,{"$f":"IF('TN Liste'!A58=0,\"\",'TN Liste'!A58)","v":""}]
[{"$f":"IF('TN Liste'!A29=0,\"\",'TN Liste'!A29)","v":"Max Mustermann 28"},null,null,null,null,null,null,null,null,null,null,null,null,null,{"$f":"IF('TN Liste'!A59=0,\"\",'TN Liste'!A59)","v":""}]
[{"$f":"IF('TN Liste'!A30=0,\"\",'TN Liste'!A30)","v":"Max Mustermann 29"},null,null,null,null,null,null,null,null,null,null,null,null,null,{"$f":"IF('TN Liste'!A60=0,\"\",'TN Liste'!A60)","v":""}]
[{"$f":"IF('TN Liste'!A31=0,\"\",'TN Liste'!A31)","v":"Max Mustermann 30"},null,null,null,null,null,null,null,null,null,null,null,null,null,{"$f":"IF('TN Liste'!A61=0,\"\",'TN Liste'!A61)","v":""}]
[]
[]
[null,null,null,null,null,null,null,null,null,null,"= Feld reserviert für Küche!",null,null,null,null,null,null,null,null,null,null,null,null,null,"= Feld reserviert für Küche!"]
[]
[null,null,null,null,null,null,null,null,null,null,null,"Seite 1 von 2",null,null,null,null,null,null,null,null,null,null,null,null,null,"Seite 2 von 2"]
[]
[]
[]
[]
[]
[]
[]
[]
[null,null,"Aktuelle\nKalenderwoche",null,null,"Aktuelles\nDatum"]
[]
[null,null,{"$f":"WEEKNUM(TODAY())","v":19},null,null,{"$f":"TODAY()","v":"2025-05-07"}]

{"sheet":"TN Liste","index":1,"n_rows":37,"n_cols":2,"rows_kept":37,"cut":false,"hidden":false,"merged":[]}
["Name","Besonderheiten"]
["Max Mustermann 1"]
["Max Mustermann 2"]
["Max Mustermann 3"]
["Max Mustermann 4"]
["Max Mustermann 5"]
["Max Mustermann 6","Kein Fisch"]
["Max Mustermann 7"]
["Max Mustermann 8"]
["Max Mustermann 9"]
["Max Mustermann 10","Unverträglichkeit: Soja"]
["Max Mustermann 11"]
["Max Mustermann 12"]
["Max Mustermann 13"]
["Max Mustermann 14","Laktoseintoleranz"]
["Max Mustermann 15","Vegetarisch"]
["Max Mustermann 16"]
["Max Mustermann 17","Kein Fisch"]
["Max Mustermann 18"]
["Max Mustermann 19"]
["Max Mustermann 20"]
["Max Mustermann 21"]
["Max Mustermann 22","Vegetarisch, ohne Fisch"]
["Max Mustermann 23"]
["Max Mustermann 24","Kein Fisch"]
["Max Mustermann 25","Unverträglichkeit: Äpfel, Nüsse"]
["Max Mustermann 26"]
["Max Mustermann 27","Vegan, Milchallergie"]
["Max Mustermann 28"]
["Max Mustermann 29"]
["Max Mustermann 30","Nussallergie"]
["Max Mustermann 31"]
["Max Mustermann 32"]
["Max Mustermann 33"]
["Max Mustermann 34"]
["Max Mustermann 35"]
["Max Mustermann 36"]